bitfinex-derivatives/quotes_BTCF0:USTF0_20260214
["timestamp","ask_amount","ask_price","bid_price","bid_amount"]
[1771032150455,0.01456,69030.0,69022.0,0.028991]
[1771032150644,0.01556,69030.0,69025.0,0.004]
[1771032151548,0.01456,69030.0,69023.0,0.014495]
[1771032151752,0.01556,69030.0,69023.0,0.014495]
[1771032153652,0.01456,69030.0,69023.0,0.014495]
[1771032153854,0.01556,69030.0,69025.0,0.004]
[1771032154352,0.01556,69030.0,69023.0,0.014495]
[1771032154353,0.01556,69030.0,69027.0,0.014494]
[1771032154947,0.01456,69030.0,69027.0,0.014494]
[1771032155457,0.01556,69030.0,69027.0,0.017494]
[1771032156652,0.01456,69032.0,69028.0,0.014494]
[1771032157156,0.01456,69032.0,69027.0,0.017495]
[1771032157655,0.01456,69032.0,69028.0,0.014494]
[1771032157847,0.01456,69032.0,69027.0,0.017494]
[1771032158155,0.01556,69032.0,69028.0,0.002]
[1771032158355,0.01556,69032.0,69028.0,0.016494]
[1771032158557,0.01456,69032.0,69028.0,0.016494]
[1771032158756,0.01456,69032.0,69029.0,0.014494]
[1771032159055,0.14496,69037.0,69028.0,0.016494]
[1771032159655,0.01456,69036.0,69028.0,0.016494]
[1771032159954,0.01456,69035.0,69031.0,0.014494]
[1771032160158,0.01456,69034.0,69030.0,0.014494]
[1771032160542,0.01057578,69034.0,69031.0,0.014494]
[1771032160749,7.8e-07,69034.0,69031.0,0.014494]
[1771032161054,7.8e-07,69034.0,69032.0,0.014493]
[1771032161256,0.30673919,69049.0,69031.0,0.30885897]
[1771032161455,0.014491,69043.0,69031.0,0.32335297]
[1771032161753,0.014491,69043.0,69025.0,0.014495]
[1771032161754,0.30673919,69036.0,69025.0,0.014495]
[1771032162052,0.32129919,69036.0,69026.0,0.01456]
[1771032162357,0.01456,69036.0,69028.0,0.014494]
[1771032162850,0.002,69034.0,69031.0,0.001]
[1771032163460,0.01556,69036.0,69030.0,0.014494]
[1771032163655,0.01556,69036.0,69028.0,0.018494]
[1771032163863,0.01456,69036.0,69028.0,0.014494]
[1771032164063,0.001,69034.0,69031.0,0.002]
[1771032164361,0.01456,69033.0,69031.0,0.002]
[1771032164555,0.01456,69033.0,69030.0,0.003]
[1771032165559,0.014491,69045.0,69030.0,0.31185897]
[1771032165760,0.174011,69044.0,69032.0,0.014493]
[1771032166060,0.014491,69043.0,69031.0,0.014494]
[1771032166557,0.014491,69043.0,69031.0,0.021494]
[1771032166964,0.014491,69043.0,69031.0,0.014494]
[1771032167163,0.016491,69043.0,69031.0,0.021494]
[1771032168362,0.030982,69043.0,69031.0,0.021494]
[1771032168563,0.014491,69042.0,69031.0,0.007]
[1771032168758,0.01456,69041.0,69031.0,0.007]
[1771032169862,0.01456,69041.0,69030.0,0.029054]
[1771032170062,0.01456,69041.0,69031.0,0.009]
[1771032170565,0.01656,69041.0,69031.0,0.009]
[1771032171166,0.002,69041.0,69031.0,0.023494]
[1771032171367,0.01456,69040.0,69031.0,0.023494]
[1771032173167,0.01456,69039.0,69031.0,0.023494]
[1771032173467,0.01456,69039.0,69031.0,0.022494]
[1771032174561,0.01656,69039.0,69031.0,0.022494]
[1771032175269,0.014493,69037.0,69027.0,0.01456]
[1771032175472,0.32123219,69037.0,69027.0,0.01456]
[1771032175672,0.014493,69036.0,69027.0,0.01456]
[1771032175979,0.01456,69035.0,69027.0,0.01456]
[1771032176672,0.01456,69035.0,69027.0,0.02256]
[1771032176872,0.01456,69035.0,69027.0,0.037054]
[1771032177171,0.01656,69035.0,69027.0,0.037054]
[1771032177679,0.01656,69035.0,69027.0,0.02256]
[1771032178870,0.01456,69035.0,69027.0,0.01456]
[1771032179071,0.01656,69035.0,69027.0,0.01656]
[1771032179264,0.014494,69030.0,69025.0,0.01456]
[1771032179863,0.014494,69029.0,69021.0,6.4e-05]
[1771032180269,0.014494,69030.0,69021.0,6.4e-05]
[1771032180570,0.016494,69030.0,69025.0,0.002]
[1771032181371,0.014494,69029.0,69025.0,0.002]
[1771032181574,0.014494,69029.0,69021.0,6.4e-05]
[1771032181766,0.014494,69028.0,69021.0,6.4e-05]
[1771032181968,0.014494,69028.0,69021.0,0.003064]
[1771032182272,0.016494,69029.0,69021.0,0.003064]
[1771032182464,0.014494,69029.0,69021.0,6.4e-05]
[1771032182672,0.30310271,69027.0,69011.0,0.24318075]
[1771032182862,0.01456,69026.0,69021.0,0.028992]
[1771032183065,0.01456,69025.0,69021.0,0.014496]
[1771032183264,0.01456,69025.0,69021.0,0.002]
[1771032184171,0.01456,69025.0,69021.0,0.016496]
[1771032184361,0.01456,69024.0,69021.0,0.016496]
[1771032184764,0.01456,69024.0,69021.0,0.014496]
[1771032185370,0.01456,69024.0,69021.0,0.018496]
[1771032185576,0.01456,69024.0,69021.0,0.004]
[1771032185876,0.01256,69024.0,69021.0,0.003]
[1771032186179,0.000704,69029.0,69021.0,0.30601001]
[1771032186470,0.000704,69029.0,69022.0,0.014496]
[1771032186774,0.002,69024.0,69022.0,0.014496]
[1771032188574,0.002,69024.0,69022.0,0.030992]
[1771032188876,0.002,69024.0,69022.0,0.016496]
[1771032189074,0.000704,69029.0,69022.0,0.014496]
[1771032189274,0.002,69024.0,69022.0,0.030992]
[1771032189475,0.000704,69029.0,69022.0,0.016496]
[1771032189674,0.000704,69029.0,69022.0,0.30301001]
[1771032189875,0.002,69024.0,69022.0,0.30501001]
[1771032191268,0.029054,69032.0,69022.0,0.30301001]
[1771032191476,0.002,69024.0,69022.0,0.29151401]
[1771032191777,0.002,69024.0,69022.0,0.28851401]
[1771032191977,0.002,69024.0,69022.0,0.29251401]
[1771032192380,0.014494,69031.0,69022.0,0.28851401]
[1771032192574,0.002,69024.0,69022.0,0.29251401]
[1771032193074,0.01456,69032.0,69024.0,0.014495]
[1771032193579,0.01456,69032.0,69023.0,0.014495]
[1771032194077,0.01456,69032.0,69023.0,0.029055]
[1771032194574,0.002,69024.0,69023.0,0.01456]
[1771032194980,0.002,69024.0,69023.0,0.30307401]
[1771032195181,0.01656,69032.0,69023.0,0.30507401]
[1771032195682,0.01456,69032.0,69023.0,0.30307401]
[1771032195883,0.002,69024.0,69023.0,0.30607401]
[1771032196984,0.002,69024.0,69023.0,0.01756]
[1771032197290,0.031054,69032.0,69023.0,0.006]
[1771032197781,0.014493,69034.0,69022.0,0.31757001]
[1771032197984,0.029053,69033.0,69024.0,0.28851401]
[1771032198177,0.01456,69033.0,69024.0,0.28851401]
[1771032198783,0.01456,69034.0,69027.0,0.014494]
[1771032198974,0.01456,69034.0,69026.0,0.28851401]
[1771032199179,0.002,69032.0,69026.0,0.28851401]
[1771032200479,0.01456,69034.0,69026.0,0.28851401]
[1771032200678,0.001,69033.0,69026.0,0.28851401]
[1771032201191,0.002,69032.0,69026.0,0.28951401]
[1771032201780,0.01456,69034.0,69026.0,0.28851401]
[1771032201984,0.001,69033.0,69026.0,0.29051401]
[1771032203576,0.01456,69034.0,69026.0,0.28851401]
[1771032203881,0.01556,69034.0,69026.0,0.29051401]
[1771032204080,0.01456,69034.0,69026.0,0.30300901]
[1771032204295,0.001,69033.0,69026.0,0.30500901]
[1771032204490,0.001,69033.0,69026.0,0.29051401]
[1771032204689,0.01456,69034.0,69026.0,0.28851401]
[1771032205792,0.01456,69041.0,69031.0,0.30300801]
[1771032205985,0.01456,69041.0,69031.0,0.31756801]
[1771032206184,0.029052,69041.0,69031.0,0.30307401]
[1771032206590,0.014493,69036.0,69031.0,0.01456]
[1771032207091,0.014492,69039.0,69031.0,0.01456]
[1771032207291,0.028984,69040.0,69031.0,0.01456]
[1771032207493,0.014493,69037.0,69031.0,0.01456]
[1771032207686,0.001,69033.0,69031.0,0.01456]
[1771032207887,0.014491,69044.0,69033.0,0.30300701]
[1771032208091,0.001,69039.0,69033.0,0.30300701]
[1771032208298,0.01456,69043.0,69033.0,0.30300701]
[1771032208496,0.014491,69042.0,69033.0,0.28851401]
[1771032209194,0.014491,69042.0,69034.0,0.01456]
[1771032209393,0.003,69039.0,69034.0,0.30307401]
[1771032210396,0.01449,69048.0,69034.0,0.30307401]
[1771032210397,0.01449,69050.0,69036.0,0.28851401]
[1771032210589,0.01456,69050.0,69040.0,0.28851401]
[1771032210893,0.01449,69049.0,69041.0,0.30307401]
[1771032211896,0.01449,69047.0,69041.0,0.30307401]
[1771032212097,0.014491,69044.0,69038.0,0.01456]
[1771032212290,0.014491,69043.0,69032.0,0.25007698]
[1771032212595,0.014492,69039.0,69029.0,0.15952]
[1771032212795,0.029052,69038.0,69029.0,0.15952]
[1771032213199,0.029052,69038.0,69030.0,0.28160954]
[1771032213594,0.01456,69038.0,69030.0,0.28160954]
[1771032213989,0.01456,69038.0,69032.0,0.007]
[1771032214189,0.01456,69038.0,69032.0,0.2458027]
[1771032214692,0.01556,69038.0,69032.0,0.2388027]
[1771032214892,0.01456,69040.0,69032.0,0.28160954]
[1771032215400,0.001,69038.0,69032.0,0.28760954]
[1771032215596,0.001,69038.0,69032.0,0.006]
[1771032216888,0.01456,69040.0,69032.0,0.30210254]
[1771032217094,0.029052,69041.0,69032.0,0.31666254]
[1771032217293,0.014492,69040.0,69032.0,0.29616954]
[1771032217495,0.015492,69040.0,69032.0,0.30216954]
[1771032217798,0.014491,69045.0,69036.0,0.28160954]
[1771032218003,0.014491,69043.0,69036.0,0.28160954]
[1771032218301,0.014491,69043.0,69033.0,0.014493]
[1771032218597,0.014492,69042.0,69033.0,0.014493]
[1771032218895,0.014492,69041.0,69036.0,0.005]
[1771032219199,0.014491,69042.0,69036.0,0.005]
[1771032219497,0.029051,69044.0,69036.0,0.005]
[1771032220592,0.001,69043.0,69035.0,0.014493]
[1771032220787,0.001,69043.0,69035.0,0.028986]
[1771032221098,0.029051,69044.0,69035.0,0.028986]
[1771032221298,0.030051,69044.0,69036.0,0.006]
[1771032221692,0.001,69043.0,69035.0,0.035986]
[1771032222201,0.029051,69044.0,69035.0,0.028986]
[1771032222399,0.030051,69044.0,69036.0,0.006]
[1771032223792,0.001,69043.0,69035.0,0.035986]
[1771032224396,0.01556,69044.0,69036.0,0.021493]
[1771032224797,0.014492,69041.0,69032.0,0.27171939]
[1771032225200,0.014491,69042.0,69033.0,0.014493]
[1771032225403,0.01456,69040.0,69034.0,0.014493]
[1771032225590,0.01456,69039.0,69034.0,0.014493]
[1771032225804,0.01456,69039.0,69035.0,0.014493]
[1771032226004,0.01456,69039.0,69036.0,0.014493]
[1771032226804,0.01456,69039.0,69036.0,0.015493]
[1771032227394,0.01456,69042.0,69038.0,0.014492]
[1771032227598,0.001,69039.0,69038.0,0.29223962]
[1771032227799,0.01456,69045.0,69038.0,0.014492]
[1771032227999,0.01456,69045.0,69039.0,0.014492]
[1771032228797,0.01456,69045.0,69038.0,0.014492]
[1771032229307,0.01456,69045.0,69038.0,0.028984]
[1771032230397,0.01656,69045.0,69038.0,0.029984]
[1771032230704,0.01656,69045.0,69038.0,0.001]
[1771032230907,0.01456,69045.0,69036.0,0.29230762]
[1771032231107,0.01556,69045.0,69038.0,0.002]
[1771032231404,0.01456,69045.0,69036.0,0.29230762]
[1771032231602,0.031051,69045.0,69038.0,0.001]
[1771032232495,0.01656,69045.0,69038.0,0.27874762]
[1771032232896,0.002,69045.0,69039.0,0.014492]
[1771032233208,0.003,69045.0,69039.0,0.014492]
[1771032233699,0.01456,69046.0,69036.0,0.029053]
[1771032233906,0.001,69045.0,69038.0,0.001]
[1771032234301,0.029051,69046.0,69036.0,0.01456]
[1771032234498,0.001,69045.0,69039.0,0.001]
[1771032234899,0.029051,69046.0,69036.0,0.01456]
[1771032235100,0.001,69045.0,69038.0,0.001]
[1771032236503,0.029051,69046.0,69036.0,0.01456]
[1771032236709,0.002,69045.0,69039.0,0.001]
[1771032237103,0.01456,69044.0,69036.0,0.01456]
[1771032237407,0.01456,69044.0,69038.0,0.001]
[1771032237704,0.01456,69044.0,69036.0,0.029053]
[1771032237911,0.01456,69044.0,69039.0,0.001]
[1771032239102,0.01456,69044.0,69040.0,0.014492]
[1771032239304,0.01456,69044.0,69041.0,0.014492]
[1771032239510,0.01556,69044.0,69041.0,0.014492]
[1771032239812,0.01556,69044.0,69040.0,0.014492]
[1771032240006,0.01456,69044.0,69041.0,0.014491]
[1771032240208,0.01656,69044.0,69041.0,0.014491]
[1771032240410,0.14492,69060.0,69043.0,0.27774762]
[1771032240605,0.014488,69058.0,69048.0,0.27774762]
[1771032240814,0.014488,69058.0,69047.0,0.02905]
[1771032241107,0.014488,69057.0,69047.0,0.02905]
[1771032242819,0.029048,69059.0,69048.0,0.01449]
[1771032243017,0.014488,69058.0,69048.0,0.01449]
[1771032243217,0.001,69058.0,69050.0,0.01449]
[1771032243418,0.001,69058.0,69050.0,0.29283862]
[1771032243613,0.01456,69059.0,69050.0,0.27834862]
[1771032243812,0.001,69057.0,69050.0,0.27834862]
[1771032244115,0.001,69057.0,69047.0,0.03005]
[1771032244314,0.016488,69058.0,69050.0,0.001]
[1771032244820,0.014489,69056.0,69050.0,0.001]
[1771032245623,0.029049,69056.0,69050.0,0.001]
[1771032245815,0.029049,69056.0,69047.0,0.01456]
[1771032246512,0.030049,69056.0,69047.0,0.01456]
[1771032247320,0.029049,69056.0,69047.0,0.01556]
[1771032249128,0.029049,69056.0,69047.0,0.01456]
[1771032249331,0.030049,69056.0,69047.0,0.01656]
[1771032249530,0.014489,69053.0,69047.0,0.01656]
[1771032249832,0.014489,69052.0,69045.0,0.01456]
[1771032250332,0.014491,69047.0,69045.0,0.01456]
[1771032250525,0.01449,69049.0,69039.0,0.42326862]
[1771032250526,0.01449,69048.0,69043.0,0.01456]
[1771032250933,0.01449,69050.0,69047.0,0.002]
[1771032251134,0.01449,69050.0,69043.0,0.01456]
[1771032251834,0.02898,69050.0,69043.0,0.01456]
[1771032252235,0.01449,69051.0,69043.0,0.01456]
[1771032252738,0.005,69047.0,69045.0,0.002]
[1771032252931,0.01456,69052.0,69046.0,0.014491]
[1771032253926,0.004,69051.0,69046.0,0.014491]
[1771032254236,0.004,69051.0,69045.0,0.014491]
[1771032255126,0.004,69051.0,69046.0,0.014491]
[1771032255334,0.01956,69052.0,69046.0,0.015491]
[1771032255523,0.01956,69052.0,69048.0,0.01449]
[1771032255835,0.01456,69052.0,69048.0,0.01449]
[1771032256036,0.004,69051.0,69048.0,0.01449]
[1771032256339,0.014488,69058.0,69048.0,0.01449]
[1771032256534,0.01456,69057.0,69048.0,0.01449]
[1771032257235,0.007,69052.0,69048.0,0.01649]
[1771032257535,0.00044,69052.0,69048.0,0.01649]
[1771032257932,0.01456,69055.0,69049.0,0.01449]
[1771032258433,0.01456,69055.0,69048.0,0.01649]
[1771032258634,0.01456,69055.0,69048.0,0.01549]
[1771032259636,0.01456,69055.0,69048.0,0.001]
[1771032259836,0.01756,69055.0,69049.0,0.001]
[1771032261329,0.01456,69055.0,69047.0,0.01449]
[1771032261628,0.01556,69055.0,69048.0,0.001]
[1771032262029,0.01456,69055.0,69047.0,0.01449]
[1771032263239,0.01556,69055.0,69047.0,0.01549]
[1771032263940,0.01556,69055.0,69047.0,0.001]
[1771032264841,0.01556,69055.0,69047.0,0.003]
[1771032265233,0.01556,69055.0,69046.0,0.029051]
[1771032265744,0.01556,69055.0,69047.0,0.001]
[1771032265945,0.01656,69055.0,69047.0,0.004]
[1771032267543,0.01456,69055.0,69046.0,0.01456]
[1771032267748,0.01449,69050.0,69046.0,0.004]
[1771032268043,0.01449,69051.0,69040.0,0.014492]
[1771032268544,0.014489,69052.0,69042.0,0.014491]
[1771032268843,0.001,69050.0,69046.0,0.003]
[1771032269446,0.001,69051.0,69043.0,0.01456]
[1771032269842,0.001,69051.0,69043.0,0.029051]
[1771032270043,0.001,69051.0,69044.0,0.014491]
[1771032270837,0.003,69050.0,69046.0,0.001]
[1771032271239,0.003,69050.0,69047.0,0.01449]
[1771032271540,0.002,69051.0,69045.0,0.014491]
[1771032272240,0.002,69050.0,69046.0,0.001]
[1771032272849,0.01456,69055.0,69046.0,0.31230454]
[1771032273150,0.01456,69055.0,69046.0,0.01549]
[1771032273949,0.01456,69055.0,69047.0,0.01456]
[1771032275046,0.001,69051.0,69046.0,0.01456]
[1771032275545,0.01549,69051.0,69043.0,0.01456]
[1771032276152,0.01649,69051.0,69046.0,0.001]
[1771032276646,0.03105,69051.0,69046.0,0.001]
[1771032276849,0.01449,69050.0,69043.0,0.01456]
[1771032277742,0.01449,69050.0,69043.0,0.01656]
[1771032278249,0.01749,69050.0,69043.0,0.01556]
[1771032278951,0.01449,69049.0,69043.0,0.01556]
[1771032279743,0.003,69050.0,69043.0,0.01556]
[1771032280851,0.003,69049.0,69043.0,0.031051]
[1771032281351,0.02905,69051.0,69043.0,0.029051]
[1771032281549,0.002,69050.0,69043.0,0.030051]
[1771032281949,0.01456,69051.0,69043.0,0.029051]
[1771032282248,0.002,69049.0,69043.0,0.030051]
[1771032282551,0.01456,69051.0,69043.0,0.029051]
[1771032282748,0.01456,69051.0,69044.0,0.26825127]
[1771032282949,0.26782271,69065.0,69053.0,0.26825127]
[1771032282950,0.14492,69065.0,69053.0,0.26825127]
[1771032283252,0.014487,69063.0,69055.0,0.26825127]
[1771032283452,0.014487,69063.0,69053.0,0.014489]
[1771032283748,0.01456,69064.0,69053.0,0.014489]
[1771032284344,0.01456,69064.0,69054.0,0.014489]
[1771032284545,0.26782271,69057.0,69041.0,0.01456]
[1771032284744,0.014489,69054.0,69044.0,0.014491]
[1771032285250,0.014489,69053.0,69044.0,0.014491]
[1771032285451,0.01456,69052.0,69044.0,0.014491]
[1771032285751,0.01449,69050.0,69041.0,0.01456]
[1771032285947,0.01449,69051.0,69041.0,0.029052]
[1771032286254,0.02898,69051.0,69041.0,0.029052]
[1771032286751,0.01449,69050.0,69041.0,0.029052]
[1771032287252,0.01449,69050.0,69044.0,0.003]
[1771032287747,0.01449,69049.0,69041.0,0.031052]
[1771032287949,0.02905,69049.0,69041.0,0.031052]
[1771032288151,0.02905,69049.0,69041.0,0.029052]
[1771032288340,0.02905,69049.0,69044.0,0.001]
[1771032288757,0.02905,69049.0,69041.0,0.029052]
[1771032288948,0.03005,69049.0,69041.0,0.031052]
[1771032289550,0.03005,69049.0,69041.0,0.01656]
[1771032290452,0.03005,69049.0,69044.0,0.002]
[1771032290955,0.01556,69049.0,69041.0,0.032051]
[1771032291253,0.01556,69049.0,69043.0,0.014491]
[1771032291451,0.01456,69049.0,69043.0,0.014491]
[1771032291646,0.01556,69049.0,69044.0,0.002]
[1771032292750,0.01556,69049.0,69046.0,0.01449]
[1771032292942,0.01556,69049.0,69045.0,0.014491]
[1771032294256,0.01556,69049.0,69045.0,0.016491]
[1771032294856,0.01556,69049.0,69046.0,0.014491]
[1771032295354,0.01456,69050.0,69045.0,0.016491]
[1771032295756,0.014489,69054.0,69045.0,0.016491]
[1771032296055,0.01456,69053.0,69045.0,0.016491]
[1771032296454,0.01456,69053.0,69046.0,0.01449]
[1771032296849,0.002,69049.0,69046.0,0.01549]
[1771032297752,0.14492,69055.0,69048.0,0.01449]
[1771032297955,0.01456,69054.0,69048.0,0.02898]
[1771032298257,0.001,69053.0,69048.0,0.02898]
[1771032298658,0.01456,69054.0,69049.0,0.01449]
[1771032300358,0.01856,69054.0,69049.0,0.02998]
[1771032300758,0.01856,69054.0,69049.0,0.01549]
[1771032300959,0.01856,69054.0,69049.0,0.02998]
[1771032301253,0.01856,69054.0,69049.0,0.01549]
[1771032301655,0.01856,69054.0,69049.0,0.001]
[1771032306758,0.033049,69054.0,69049.0,0.001]
[1771032307159,0.033049,69054.0,69046.0,0.01456]
[1771032307759,0.01856,69054.0,69048.0,0.01449]
[1771032307956,0.01856,69054.0,69049.0,0.01449]
[1771032309464,0.01656,69054.0,69049.0,0.01449]
[1771032309667,0.02056,69054.0,69049.0,0.001]
[1771032310365,0.2619196,69045.0,69026.0,0.014495]
[1771032310571,0.014492,69041.0,69029.0,0.029054]
[1771032310764,0.01456,69040.0,69031.0,0.014494]
[1771032311364,0.01456,69040.0,69032.0,0.014493]
[1771032312073,0.029052,69040.0,69032.0,0.014493]
[1771032312463,0.014492,69039.0,69032.0,0.014493]
[1771032312972,0.014492,69039.0,69032.0,0.015493]
[1771032313465,0.014492,69039.0,69032.0,0.2545429]
[1771032313672,0.015492,69039.0,69032.0,0.2555429]
[1771032315570,0.001,69039.0,69033.0,0.014493]
[1771032316668,0.01456,69040.0,69034.0,0.014493]
[1771032316871,0.001,69039.0,69034.0,0.014493]
[1771032317873,0.001,69039.0,69034.0,0.028986]
[1771032318073,0.01456,69040.0,69034.0,0.014493]
[1771032318665,0.01456,69040.0,69035.0,0.014493]
[1771032318871,0.01556,69040.0,69034.0,0.017493]
[1771032321169,0.01456,69040.0,69035.0,0.014493]
[1771032321567,0.01456,69040.0,69034.0,0.003]
[1771032322371,0.01556,69040.0,69035.0,0.003]
[1771032322771,0.01456,69040.0,69037.0,0.014492]
[1771032322971,0.01456,69042.0,69037.0,0.014492]
[1771032323468,0.01456,69044.0,69037.0,0.014492]
[1771032323677,0.001,69040.0,69036.0,0.029053]
[1771032325178,0.01456,69044.0,69037.0,0.004]
[1771032325478,0.01456,69044.0,69037.0,0.018492]
[1771032325677,0.01456,69044.0,69038.0,0.014492]
[1771032325880,0.01456,69045.0,69039.0,0.014492]
[1771032326178,0.01456,69045.0,69038.0,0.014492]
[1771032326774,0.14492,69049.0,69041.0,0.014491]
[1771032326973,0.02905,69048.0,69040.0,0.28393747]
[1771032327280,0.01456,69048.0,69041.0,0.014492]
[1771032327474,0.01456,69048.0,69039.0,0.014492]
[1771032327475,0.01449,69048.0,69039.0,0.043544]
[1771032327673,0.01449,69051.0,69043.0,0.014491]
[1771032327875,0.01456,69051.0,69045.0,0.26944547]
[1771032328077,0.01255998,69051.0,69045.0,0.26944547]
[1771032328270,0.01456,69053.0,69045.0,0.28400547]
[1771032328673,0.01456,69053.0,69045.0,0.29849647]
[1771032328977,0.01456,69053.0,69047.0,0.01449]
[1771032329178,0.014489,69053.0,69046.0,0.26944547]
[1771032329878,0.029049,69054.0,69046.0,0.26944547]
[1771032330178,0.014489,69053.0,69046.0,0.26944547]
[1771032330480,0.016489,69053.0,69046.0,0.26944547]
[1771032331281,0.016489,69053.0,69045.0,0.029051]
[1771032331680,0.01449,69048.0,69039.0,0.014492]
[1771032332970,0.01456,69050.0,69038.0,0.01456]
[1771032333175,0.05,79295.0,69035.0,0.01456]
[1771032333176,0.014492,69041.0,69035.0,0.01456]
[1771032334776,0.014491,69043.0,69035.0,0.01456]
[1771032334777,0.014491,69042.0,69035.0,0.01456]
[1771032334979,0.014491,69042.0,69039.0,0.001]
[1771032335575,0.014491,69042.0,69035.0,0.001]
[1771032336075,0.019491,69042.0,69039.0,0.001]
[1771032336474,0.033983,69042.0,69039.0,0.001]
[1771032336685,0.014492,69040.0,69035.0,0.001]
[1771032337587,0.029052,69040.0,69035.0,0.001]
[1771032337885,0.01456,69040.0,69035.0,0.001]
[1771032338072,0.01456,69040.0,69033.0,0.01456]
[1771032338275,0.01456,69040.0,69039.0,0.001]
[1771032338475,0.01456,69040.0,69033.0,0.01456]
[1771032338878,0.01956,69040.0,69035.0,0.001]
[1771032339283,0.01456,69040.0,69033.0,0.01456]
[1771032339485,0.02156,69040.0,69039.0,0.001]
[1771032339685,0.02156,69040.0,69033.0,0.01456]
[1771032340393,0.036052,69040.0,69033.0,0.01456]
[1771032340583,0.014493,69036.0,69026.0,0.014495]
[1771032340888,0.01456,69035.0,69028.0,0.014494]
[1771032341775,0.01456,69035.0,69027.0,0.014495]
[1771032341979,0.01856,69035.0,69028.0,0.001]
[1771032342288,0.004,69035.0,69028.0,0.001]
[1771032342488,0.01456,69034.0,69028.0,0.015494]
[1771032342679,0.01456,69034.0,69029.0,0.014494]
[1771032342879,0.003,69035.0,69029.0,0.029054]
[1771032343280,0.003,69035.0,69029.0,0.01456]
[1771032344588,0.001,69034.0,69029.0,0.01456]
[1771032345186,0.002,69035.0,69029.0,0.01556]
[1771032345589,0.014493,69036.0,69029.0,0.01456]
[1771032345887,0.002,69034.0,69029.0,0.01556]
[1771032347890,0.002,69035.0,69029.0,0.01556]
[1771032348190,0.016493,69035.0,69029.0,0.01556]
[1771032348386,0.014493,69035.0,69029.0,0.01456]
[1771032348586,0.002,69034.0,69029.0,0.01556]
[1771032349183,0.016493,69035.0,69029.0,0.01556]
[1771032349879,0.016493,69035.0,69029.0,0.01456]
[1771032350080,0.002,69034.0,69029.0,0.01556]
[1771032351394,0.014493,69035.0,69029.0,0.01456]
[1771032351594,0.016493,69035.0,69029.0,0.01556]
[1771032352093,0.002,69034.0,69029.0,0.01556]
[1771032352590,0.002,69034.0,69029.0,0.01456]
[1771032352791,0.016493,69035.0,69029.0,0.01556]
[1771032352988,0.014493,69034.0,69029.0,0.01556]
[1771032354286,0.028986,69034.0,69029.0,0.01556]
[1771032354596,0.016493,69034.0,69029.0,0.01556]
[1771032354995,0.014493,69034.0,69029.0,0.01556]
[1771032355193,0.016493,69034.0,69029.0,0.01556]
[1771032357295,0.030986,69034.0,69029.0,0.01556]
[1771032359597,0.014493,69033.0,69029.0,0.01556]
[1771032360199,0.016493,69034.0,69029.0,0.01556]
[1771032360498,0.014493,69033.0,69029.0,0.01556]
[1771032360696,0.015493,69033.0,69029.0,0.01456]
[1771032361001,0.014494,69032.0,69029.0,0.01056]
[1771032361903,0.25118424,69027.0,69010.0,0.14496]
[1771032362105,0.014498,69013.0,69010.0,0.14496]
[1771032362405,0.014498,69012.0,69010.0,0.14496]
[1771032362796,0.014498,69013.0,69010.0,0.14496]
[1771032362998,0.014498,69009.0,69001.0,0.14496]
[1771032363199,0.014498,69010.0,69002.0,0.01456]
[1771032363610,0.014498,69009.0,69002.0,0.01456]
[1771032363804,0.014498,69010.0,69002.0,0.01456]
[1771032363998,0.014498,69011.0,69010.0,0.001]
[1771032364198,0.014499,69009.0,69006.0,0.01456]
[1771032364403,0.014499,69008.0,69006.0,0.01456]
[1771032364802,0.015498,69010.0,69006.0,0.01456]
[1771032365000,0.014498,69009.0,69006.0,0.01456]
[1771032365206,0.001,69009.0,69006.0,0.01656]
[1771032366004,0.015498,69009.0,69006.0,0.01656]
[1771032366206,0.014499,69008.0,69006.0,0.01656]
[1771032366607,0.014498,69010.0,69006.0,0.01456]
[1771032366802,0.001,69008.0,69006.0,0.01556]
[1771032367815,0.015498,69010.0,69006.0,0.01556]
[1771032368408,0.001,69008.0,69006.0,0.01556]
[1771032369919,0.001,69010.0,69006.0,0.01556]
[1771032370319,0.015498,69010.0,69006.0,0.01556]
[1771032370616,0.001,69008.0,69006.0,0.01556]
[1771032370918,0.014498,69010.0,69006.0,0.01456]
[1771032371120,0.015498,69010.0,69006.0,0.01556]
[1771032372528,0.01465942,69012.0,69006.0,0.01456]
[1771032372729,0.001,69008.0,69006.0,0.01656]
[1771032373122,0.01465942,69012.0,69006.0,0.01456]
[1771032373319,0.001,69010.0,69006.0,0.01656]
[1771032373825,0.001,69008.0,69006.0,0.01656]
[1771032374027,0.015499,69008.0,69006.0,0.01656]
[1771032374327,0.014499,69008.0,69006.0,0.01456]
[1771032374528,0.014498,69009.0,69006.0,0.01656]
[1771032374730,0.014499,69004.0,68996.0,0.014501]
[1771032374928,0.0145,69002.0,68998.0,0.01456]
[1771032375124,0.0145,69003.0,68998.0,0.01456]
[1771032375330,0.0145,69002.0,68998.0,0.01456]
[1771032375930,0.014499,69005.0,68998.0,0.01456]
[1771032376427,0.014499,69005.0,68998.0,0.01556]
[1771032376734,0.001,69002.0,68998.0,0.01556]
[1771032377232,0.001,69002.0,68998.0,0.030061]
[1771032377533,0.044558,69005.0,68998.0,0.01556]
[1771032377735,0.030059,69005.0,68998.0,0.01556]